fUSD/lending_fUSD_20250120
["ID","MTS","AMOUNT","RATE_DAILY","PERIOD"]
[349629357,1737336632118,-1328.79880903,0.0002,2]
[349629358,1737336632128,-186.05,0.00020043,2]
[349629359,1737336632137,-24996.77,0.00020145,2]
[349629360,1737336632148,-1166.08,0.00020145,2]
[349629361,1737336632157,-1000.0,0.00020174,2]
[349629362,1737336632167,-168.3,0.00020217,2]
[349629364,1737336632181,-500.0,0.0002026,2]
[349629366,1737336632190,-6728.0,0.00020368,2]
[349629367,1737336632199,-992.04815422,0.00020402,2]
[349629368,1737336632209,-250.0,0.00020502,2]
[349629369,1737336632218,-897.31159319,0.0002062,2]
[349629370,1737336632227,-1154.69,0.00020675,2]
[349629371,1737336632237,-558.863712,0.00020701,2]
[349629373,1737336632247,-972.0,0.00020709,2]
[349629374,1737336632256,-19566.5225,0.0002073,2]
[349629375,1737336632266,-992.26,0.00020781,30]
[349629376,1737336632275,-1212.423,0.00020781,2]
[349629377,1737336632285,-578.69118681,0.00020798,2]
[349629378,1737336632294,-85159.4752,0.000208,2]
[349629379,1737336632304,-356.68982589,0.000208,2]
[349629380,1737336632314,-1000.0,0.000208,2]
[349629381,1737336632323,-200.0,0.00020823,2]
[349629383,1737336632333,-500.0,0.00020829,2]
[349629385,1737336632343,-31540.5761,0.0002083,2]
[349629387,1737336632352,-4662.5581,0.0002083,2]
[349629389,1737336632362,-1000.0,0.0002083,2]
[349629391,1737336632372,-409.7688,0.0002083,2]
[349629393,1737336632381,-578.69118681,0.00020847,2]
[349629395,1737336632391,-200.0,0.0002088,2]
[349629397,1737336632401,-578.69118681,0.00020886,2]
[349629400,1737336632410,-200.0,0.0002089,2]
[349629402,1737336632428,-161.905,0.000209,2]
[349629404,1737336632438,-500.0,0.00020929,2]
[349629406,1737336632447,-500.0,0.00020929,2]
[349629408,1737336632457,-500.0,0.00020929,2]
[349629410,1737336632466,-500.0,0.00020929,2]
[349629412,1737336632478,-723.15,0.00020929,2]
[349629414,1737336632488,-509.81,0.00020929,2]
[349629416,1737336632497,-500.0,0.00020929,2]
[349629418,1737336632507,-312.22104667,0.00020929,2]
[349629420,1737336632519,-500.0,0.00020929,2]
[349629422,1737336632529,-500.0,0.00020929,2]
[349629424,1737336632539,-1034.09,0.00020929,2]
[349629426,1737336632549,-713.78,0.00020929,2]
[349629428,1737336632558,-191.26854225,0.00020929,2]
[349629430,1737336632568,-5336.25,0.00020929,2]
[349629432,1737336632578,-500.0,0.00020929,2]
[349629434,1737336632587,-500.0,0.00020929,2]
[349629437,1737336632597,-545.88,0.00020929,2]
[349629439,1737336632607,-500.0,0.00020929,2]
[349629441,1737336632617,-534.2,0.00020929,2]
[349629443,1737336632627,-500.0,0.00020929,2]
[349629445,1737336632636,-2217.28,0.00020929,2]
[349629447,1737336632645,-500.0,0.00020929,2]
[349629449,1737336632655,-500.0,0.00020929,2]
[349629451,1737336632664,-2548.51,0.00020929,2]
[349629452,1737336632676,-1114.84,0.00020929,2]
[349629453,1737336632685,-3569.13,0.00020929,2]
[349629454,1737336632695,-2388.48,0.00020929,2]
[349629456,1737336632704,-500.0,0.00020929,2]
[349629457,1737336632714,-4176.29,0.00020929,2]
[349629459,1737336632724,-500.0,0.00020929,2]
[349629462,1737336632734,-2002.23,0.00020929,2]
[349629464,1737336632744,-500.0,0.00020929,2]
[349629466,1737336632754,-727.88,0.00020929,2]
[349629468,1737336632763,-6471.62,0.00020929,2]
[349629470,1737336632772,-500.0,0.00020929,2]
[349629472,1737336632782,-522.20108731,0.00020929,2]
[349629474,1737336632792,-500.0,0.00020929,2]
[349629476,1737336632802,-984.44,0.00020929,2]
[349629478,1737336632811,-500.0,0.00020929,2]
[349629480,1737336632821,-625.92808105,0.00020929,2]
[349629482,1737336632830,-500.0,0.00020929,2]
[349629484,1737336632840,-500.0,0.00020929,2]
[349629486,1737336632850,-500.0,0.00020929,2]
[349629488,1737336632859,-1189.24,0.00020929,2]
[349629490,1737336632869,-517.21673265,0.00020929,2]
[349629492,1737336632878,-498.72533716,0.00020929,2]
[349629493,1737336632887,-606.01,0.00020929,2]
[349629494,1737336632897,-534.73339878,0.00020929,2]
[349629495,1737336632907,-500.0,0.0002093,2]
[349629496,1737336632917,-646.0,0.0002093,2]
[349629497,1737336632930,-500.0,0.0002093,2]
[349629498,1737336632944,-500.0,0.0002093,2]
[349629499,1737336632954,-114581.23571415,0.0002093,2]
[349629500,1737336632963,-578.69118681,0.00020931,2]
[349629501,1737336633273,-578.69118681,0.00020941,2]
[349629502,1737336633286,-152.0,0.00020972,3]
[349629503,1737336633296,-150.0,0.00021,2]
[349629504,1737336633308,-500.0,0.00021103,2]
[349629505,1737336633318,-5000.0,0.00021104,2]
[349629506,1737336633329,-500.0,0.00021201,2]
[349629507,1737336633338,-556.27,0.00021201,2]
[349629508,1737336633352,-500.0,0.00021201,2]
[349629509,1737336633363,-500.0,0.00021201,2]
[349629510,1737336633373,-897.74,0.00021201,2]
[349629511,1737336633383,-500.0,0.00021201,2]
[349629512,1737336633394,-4854.32,0.00021201,2]
[349629513,1737336633404,-500.0,0.00021201,2]
[349629514,1737336633415,-1990.23,0.00021201,2]
[349629515,1737336633425,-500.0,0.00021201,2]
[349629516,1737336633435,-2275.433281,0.00021201,2]
[349629517,1737336633445,-1501.28,0.00021201,2]
[349629518,1737336633455,-159.521197,0.00021201,2]
[349629519,1737336633465,-500.0,0.00021201,2]
[349629520,1737336633478,-157.458091,0.00021201,2]
[349629521,1737336633488,-500.0,0.00021201,2]
[349629522,1737336633498,-500.0,0.00021201,2]
[349629523,1737336633508,-1461.34,0.00021201,2]
[349629524,1737336633520,-500.0,0.00021201,2]
[349629525,1737336633531,-500.0,0.00021201,2]
[349629526,1737336633541,-1489.26978,0.00021201,2]
[349629527,1737336633551,-500.0,0.00021201,2]
[349629528,1737336633562,-500.0,0.00021201,2]
[349629529,1737336633572,-552.01,0.00021201,2]
[349629530,1737336633582,-500.0,0.00021201,2]
[349629531,1737336633594,-563.74,0.00021201,2]
[349629532,1737336633604,-500.0,0.00021201,2]
[349629533,1737336633614,-500.0,0.00021201,2]
[349629534,1737336633624,-500.0,0.00021201,2]
[349629535,1737336633633,-500.0,0.00021201,2]
[349629536,1737336633643,-500.0,0.00021201,2]
[349629537,1737336633652,-500.0,0.00021201,2]
[349629538,1737336633662,-500.0,0.00021201,2]
[349629539,1737336633672,-1242.45,0.00021201,2]
[349629540,1737336633691,-500.0,0.00021201,2]
[349629541,1737336633701,-1389.67,0.00021201,2]
[349629542,1737336633710,-500.0,0.00021201,2]
[349629543,1737336633720,-500.0,0.00021201,2]
[349629544,1737336633731,-500.0,0.00021201,2]
[349629545,1737336633740,-992.56,0.00021201,2]
[349629546,1737336633750,-576.60359747,0.00021201,2]
[349629547,1737336633760,-500.0,0.00021201,2]
[349629548,1737336633770,-672.8,0.00021201,2]
[349629549,1737336633780,-500.0,0.00021201,2]
[349629550,1737336633791,-1626.83,0.00021202,2]
[349629551,1737336633801,-500.0,0.00021202,2]
[349629552,1737336633810,-500.0,0.00021202,2]
[349629553,1737336633821,-1535.35,0.00021202,2]
[349629554,1737336633831,-1193.13,0.00021202,2]
[349629555,1737336633841,-1217.6,0.00021202,2]
[349629556,1737336633851,-998.54,0.00021202,2]
[349629557,1737336633860,-500.0,0.00021202,2]
[349629558,1737336633870,-2339.91,0.00021202,2]
[349629559,1737336633880,-922.05,0.00021202,2]
[349629560,1737336633890,-652.79,0.00021202,2]
[349629561,1737336633900,-920.12,0.00021202,2]
[349629562,1737336633910,-2462.99,0.00021202,2]
[349629563,1737336633919,-539.41,0.00021202,2]
[349629564,1737336633928,-500.0,0.00021202,2]
[349629565,1737336633938,-642.40604788,0.00021202,2]
[349629566,1737336633947,-947.7,0.00021202,2]
[349629567,1737336633958,-891.42,0.00021202,2]
[349629568,1737336633968,-500.0,0.00021202,2]
[349629569,1737336633977,-500.0,0.00021202,2]
[349629570,1737336633987,-553.84956497,0.00021202,2]
[349629571,1737336633996,-500.0,0.00021202,2]
[349629572,1737336634005,-500.0,0.00021202,2]
[349629573,1737336634015,-500.0,0.00021202,2]
[349629574,1737336634024,-502.98,0.00021202,2]
[349629575,1737336634033,-539.93,0.00021202,2]
[349629576,1737336634053,-606.92,0.00021202,2]
[349629577,1737336634064,-500.0,0.00021202,2]
[349629578,1737336634074,-572.96447871,0.00021202,2]
[349629579,1737336634084,-216.42123203,0.00021202,2]
[349629580,1737336634110,-283.57876797,0.00021202,2]
[349629581,1737336634120,-408.74,0.00021202,2]
[349629582,1737336634131,-369.21,0.00021202,2]
[349629583,1737336634140,-500.0,0.00021202,2]
[349629584,1737336634151,-500.0,0.00021202,2]
[349629585,1737336634160,-1418.83,0.00021202,2]
[349629586,1737336634170,-219.64123203,0.00021202,2]
[349629587,1737336634182,-969.95897728,0.00021202,2]
[349629588,1737336634207,-200.53979069,0.00021202,2]
[349629589,1737336634218,-546.81019931,0.00021202,2]
[349629590,1737336634230,-489.16250671,0.00021202,2]
[349629591,1737336634251,-600.42625278,0.00021202,2]
[349629593,1737336637808,-336.04885113,0.00020829,2]
[349629594,1737336637820,-195.43114887,0.00020829,2]
[349629595,1737336637829,-500.0,0.00020829,2]
[349629596,1737336637839,-500.0,0.00020929,2]
[349629597,1737336637849,-503.6085769,0.00020929,2]
[349629598,1737336637859,-531.48,0.00021103,2]
[349629599,1737336637871,-520.41541936,0.00021103,2]
[349629600,1737336637881,-500.0,0.00021201,2]
[349629601,1737336637891,-572.7910412,0.00021202,2]
[349629602,1737336637901,-500.0,0.00021202,2]
[349629603,1737336637911,-2369.07,0.00021202,2]
[349629604,1737336637922,-719.29,0.00021202,2]
[349629605,1737336637944,-1491.15,0.00021202,2]
[349629606,1737336637954,-852.27,0.00021202,2]
[349629607,1737336637963,-1420.12,0.00021202,2]
[349629608,1737336637972,-500.0,0.00021202,2]
[349629609,1737336637984,-500.0,0.00021202,2]
[349629610,1737336637999,-500.0,0.00021202,2]
[349629611,1737336638010,-3039.47,0.00021202,2]
[349629612,1737336638020,-1773.91,0.00021202,2]
[349629613,1737336638032,-864.19,0.00021202,2]
[349629614,1737336638041,-500.0,0.00021202,2]
[349629615,1737336638051,-500.0,0.00021202,2]
[349629616,1737336638061,-500.0,0.00021202,2]
[349629617,1737336638070,-500.0,0.00021203,2]
[349629618,1737336638080,-500.0,0.00021203,2]
[349629619,1737336638090,-500.0,0.00021203,2]
[349629620,1737336638100,-500.0,0.00021203,2]
[349629621,1737336638109,-723.15,0.00021203,2]
[349629622,1737336638118,-500.0,0.00021203,2]
[349629623,1737336638127,-500.0,0.00021203,2]
[349629624,1737336638137,-1034.09,0.00021203,2]
[349629625,1737336638146,-500.0,0.00021203,2]
[349629626,1737336638155,-500.0,0.00021203,2]
[349629627,1737336638165,-1114.98,0.00021203,2]
[349629628,1737336638175,-861.32,0.00021203,2]
[349629629,1737336638184,-648.03,0.00021203,2]
[349629630,1737336638193,-764.3,0.00021203,2]
[349629631,1737336638202,-1659.79,0.00021203,2]
[349629632,1737336638212,-1140.17,0.00021203,2]
[349629633,1737336638221,-500.0,0.00021203,2]
[349629635,1737336638231,-522.78,0.00021203,2]
[349629637,1737336638240,-147.38938331,0.00021203,2]
[349629639,1737336638252,-615.62061669,0.00021203,2]
[349629641,1737336638261,-516.43,0.00021203,2]
[349629643,1737336638271,-500.0,0.00021203,2]
[349629645,1737336638280,-15.68798349,0.00021203,2]
[349629648,1737336638292,-484.31201651,0.00021203,2]
[349629649,1737336638301,-1844.64,0.00021203,2]
[349629650,1737336638310,-15.09971781,0.00021203,2]
[349629651,1737336638325,-484.90028219,0.00021203,2]
[349629652,1737336638335,-1188.29,0.00021203,2]
[349629653,1737336638344,-500.0,0.00021203,2]
[349629654,1737336638354,-1402.74,0.00021203,2]
[349629655,1737336638364,-1068.45,0.00021203,2]
[349629656,1737336638373,-1139.99,0.00021203,2]
[349629657,1737336638382,-500.0,0.00021203,2]
[349629658,1737336638392,-2399.55,0.00021203,2]
[349629659,1737336638401,-500.0,0.00021203,2]
[349629660,1737336638411,-500.0,0.00021203,2]
[349629661,1737336638420,-795.05,0.00021203,2]
[349629662,1737336638440,-664.32,0.00021203,2]
[349629663,1737336638450,-593.26,0.00021203,2]
[349629664,1737336638459,-500.0,0.00021203,2]
[349629665,1737336638469,-500.75587941,0.00021203,2]
[349629666,1737336638478,-500.0,0.00021203,2]
[349629667,1737336638492,-500.0,0.00021203,2]
[349629668,1737336638502,-500.0,0.00021203,2]
[349629669,1737336638512,-2119.97,0.00021203,2]
[349629670,1737336638522,-500.0,0.00021203,2]
[349629671,1737336638533,-500.0,0.00021203,2]
[349629672,1737336638543,-500.0,0.00021203,2]
[349629673,1737336638552,-500.0,0.00021203,2]
[349629674,1737336638561,-2150.55,0.00021203,2]
[349629675,1737336638571,-986.35,0.00021203,2]
[349629676,1737336638581,-597.31,0.00021203,2]
[349629677,1737336638591,-500.0,0.00021203,2]
[349629678,1737336638600,-500.0,0.00021203,2]
[349629679,1737336638610,-500.0,0.00021203,2]
[349629680,1737336638619,-958.81,0.00021203,2]
[349629681,1737336638629,-2565.93,0.00021203,2]
[349629682,1737336638638,-500.0,0.00021203,2]
[349629683,1737336638647,-500.0,0.00021203,2]
[349629684,1737336638656,-1756.71,0.00021203,2]
[349629685,1737336638666,-500.0,0.00021203,2]
[349629686,1737336638675,-536.28,0.00021203,2]
[349629687,1737336638685,-500.0,0.00021203,2]
[349629688,1737336638694,-500.0,0.00021203,2]
[349629689,1737336638703,-2130.19,0.00021203,2]
[349629690,1737336638713,-500.0,0.00021203,2]
[349629691,1737336638722,-500.0,0.00021203,2]
[349629692,1737336638732,-500.0,0.00021203,2]
[349629693,1737336638741,-500.0,0.00021203,2]
[349629694,1737336638750,-583.16,0.00021203,2]
[349629695,1737336638760,-500.0,0.00021203,2]
[349629696,1737336638769,-3642.8,0.00021203,2]
[349629697,1737336638778,-517.41,0.00021203,2]
[349629698,1737336638787,-500.0,0.00021203,2]
[349629699,1737336638797,-500.0,0.00021203,2]
[349629700,1737336638806,-2154.21,0.00021203,2]
[349629701,1737336638815,-500.0,0.00021203,2]
[349629702,1737336638825,-4482.13,0.00021203,2]
[349629703,1737336638834,-500.0,0.00021203,2]
[349629704,1737336638843,-500.0,0.00021203,2]
[349629705,1737336638852,-500.0,0.00021203,2]
[349629706,1737336638862,-2527.47,0.00021203,2]
[349629707,1737336638871,-500.0,0.00021203,2]
[349629708,1737336638880,-500.0,0.00021203,2]
[349629709,1737336638891,-500.0,0.00021203,2]
[349629710,1737336638900,-642.02,0.00021203,2]
[349629711,1737336638909,-644.99,0.00021203,2]
[349629712,1737336638918,-500.0,0.00021203,2]
[349629713,1737336638933,-500.0,0.00021203,2]
[349629714,1737336638952,-500.0,0.00021203,2]
[349629715,1737336638961,-500.0,0.00021203,2]
[349629716,1737336638970,-500.0,0.00021203,2]
[349629717,1737336638980,-500.0,0.00021203,2]
[349629718,1737336638989,-500.0,0.00021203,2]
[349629719,1737336638998,-500.0,0.00021203,2]
[349629720,1737336639007,-37.01935667,0.00021203,2]
[349629721,1737336639451,-462.98064333,0.00021203,2]
[349629722,1737336639461,-500.0,0.00021203,2]
[349629723,1737336639472,-562.67,0.00021203,2]
[349629724,1737336639484,-500.0,0.00021203,2]
[349629725,1737336639493,-555.56,0.00021203,2]
[349629726,1737336639503,-500.0,0.00021203,2]
[349629727,1737336639513,-2434.71,0.00021203,2]
[349629728,1737336639524,-713.78,0.00021203,2]
[349629729,1737336639533,-512.48,0.00021203,2]
[349629730,1737336639542,-3739.64,0.00021203,2]
[349629731,1737336639553,-500.0,0.00021203,2]
[349629732,1737336639563,-5336.25,0.00021203,2]
[349629733,1737336639573,-349.27671482,0.00021203,2]
[349629734,1737336639583,-500.0,0.00021203,2]
[349629735,1737336639593,-3858.03,0.00021203,2]
[349629736,1737336639603,-500.0,0.00021203,2]
[349629737,1737336639613,-500.0,0.00021203,2]
[349629738,1737336639623,-500.0,0.00021203,2]
[349629739,1737336639634,-545.88,0.00021203,2]
[349629740,1737336639644,-500.0,0.00021203,2]
[349629741,1737336639654,-7504.61,0.00021203,2]
[349629742,1737336639664,-500.0,0.00021203,2]
[349629743,1737336639674,-534.2,0.00021203,2]
[349629744,1737336639684,-631.97,0.00021203,2]
[349629745,1737336639694,-500.0,0.00021203,2]
[349629746,1737336639704,-15277.22,0.00021203,2]
[349629747,1737336639714,-2217.28,0.00021203,2]
[349629748,1737336639723,-565.92,0.00021203,2]
[349629749,1737336639733,-500.0,0.00021203,2]
[349629750,1737336639743,-506.75,0.00021203,2]
[349629751,1737336639752,-2548.51,0.00021203,2]
[349629752,1737336639762,-1661.16,0.00021203,2]
[349629753,1737336639772,-1114.84,0.00021203,2]
[349629754,1737336639782,-1574.55,0.00021203,2]
[349629755,1737336639792,-3569.13,0.00021203,2]
[349629756,1737336639801,-663.94,0.00021203,2]
[349629757,1737336639811,-2388.48,0.00021203,2]
[349629758,1737336639820,-500.0,0.00021203,2]
[349629759,1737336639830,-500.0,0.00021203,2]
[349629760,1737336639840,-4176.29,0.00021203,2]
[349629761,1737336639849,-500.0,0.00021203,2]
[349629762,1737336639859,-500.0,0.00021203,2]
[349629763,1737336639868,-500.0,0.00021203,2]
[349629764,1737336639877,-500.0,0.00021203,2]
[349629765,1737336639888,-2002.23,0.00021203,2]
[349629766,1737336639898,-500.0,0.00021203,2]
[349629767,1737336639907,-500.0,0.00021203,2]
[349629768,1737336639917,-727.88,0.00021203,2]
[349629769,1737336639927,-896.51,0.00021203,2]
[349629770,1737336639942,-500.0,0.00021203,2]
[349629771,1737336639951,-6471.62,0.00021203,2]
[349629772,1737336639960,-500.0,0.00021203,2]
[349629773,1737336639975,-500.0,0.00021203,2]
[349629774,1737336639984,-1478.88,0.00021203,2]
[349629775,1737336639993,-500.0,0.00021203,2]
[349629776,1737336640003,-500.0,0.00021203,2]
[349629777,1737336640015,-500.0,0.00021203,2]
[349629778,1737336640024,-500.0,0.00021203,2]
[349629779,1737336640034,-984.44,0.00021203,2]
[349629780,1737336640045,-500.0,0.00021203,2]
[349629781,1737336640055,-500.0,0.00021203,2]
[349629782,1737336640065,-500.0,0.00021203,2]
[349629783,1737336640075,-500.0,0.00021203,2]
[349629784,1737336640085,-598.01,0.00021203,2]
[349629785,1737336640095,-502.42798353,0.00021203,2]
[349629786,1737336640105,-1775.64,0.00021203,2]
[349629787,1737336640115,-500.0,0.00021203,2]
[349629788,1737336640124,-1189.24,0.00021203,2]
[349629789,1737336640134,-606.01,0.00021203,2]
[349629790,1737336640144,-1271.04,0.00021203,2]
[349629791,1737336640154,-500.0,0.00021203,2]
[349629792,1737336640165,-296.81,0.00021204,2]
[349629793,1737336640175,-500.0,0.00021204,2]
[349629794,1737336640189,-500.0,0.00021356,2]
[349629795,1737336640199,-500.0,0.00021356,2]
[349629796,1737336640211,-500.0,0.00021377,2]
[349629797,1737336640221,-531.48,0.00021377,2]
[349629798,1737336640230,-18680.50335803,0.00021474,2]
[349629799,1737336640239,-500.0,0.00021475,2]
[349629800,1737336640249,-223.72,0.00021475,2]
[349629801,1737336640260,-500.0,0.00021475,2]
[349629802,1737336640270,-500.0,0.00021475,2]
[349629803,1737336640281,-500.0,0.00021475,2]
[349629804,1737336640291,-511.83,0.00021475,2]
[349629805,1737336640302,-500.0,0.00021475,2]
[349629806,1737336640312,-500.0,0.00021475,2]
[349629807,1737336640321,-500.0,0.00021475,2]
[349629808,1737336640330,-649.99836133,0.00021475,2]
[349629809,1737336640340,-500.0,0.00021475,2]
[349629810,1737336640349,-500.0,0.00021475,2]
[349629811,1737336640359,-500.0,0.00021475,2]
[349629812,1737336640369,-500.0,0.00021475,2]
[349629813,1737336640379,-500.0,0.00021475,2]
[349629814,1737336640389,-500.0,0.00021475,2]
[349629815,1737336640399,-500.0,0.00021475,2]
[349629816,1737336640408,-500.0,0.00021475,2]
[349629817,1737336640419,-500.0,0.00021475,2]
[349629818,1737336640428,-500.0,0.00021475,2]
[349629819,1737336640443,-500.0,0.00021475,2]
[349629820,1737336640453,-500.0,0.00021475,2]
[349629821,1737336640463,-500.0,0.00021475,2]
[349629822,1737336640473,-500.0,0.00021475,2]
[349629823,1737336640484,-500.0,0.00021475,2]
[349629824,1737336640498,-500.0,0.00021475,2]
[349629825,1737336640509,-417.66956901,0.00021475,2]
[349629826,1737336640519,-500.0,0.00021475,2]
[349629827,1737336640529,-500.0,0.00021475,2]
[349629828,1737336640539,-601.56820044,0.00021475,2]
[349629829,1737336640548,-500.0,0.00021475,2]
[349629830,1737336640558,-500.0,0.00021475,2]
[349629831,1737336640567,-500.0,0.00021475,2]
[349629832,1737336640576,-646.53536533,0.00021475,2]
[349629833,1737336640586,-500.0,0.00021475,2]
[349629834,1737336640596,-500.0,0.00021475,2]
[349629835,1737336640605,-500.0,0.00021475,2]
[349629836,1737336640615,-957.64,0.00021475,2]
[349629837,1737336640625,-500.0,0.00021475,2]
[349629838,1737336640634,-828.03,0.00021475,2]
[349629839,1737336640644,-500.0,0.00021475,2]
[349629840,1737336640653,-441.69779348,0.00021475,2]
[349629841,1737336640663,-500.0,0.00021475,2]
[349629842,1737336640673,-500.0,0.00021475,2]
[349629843,1737336640685,-500.0,0.00021475,2]
[349629844,1737336640695,-552.21006655,0.00021475,2]
[349629845,1737336640706,-504.62,0.00021475,2]
[349629846,1737336640716,-567.73421953,0.00021475,2]
[349629847,1737336640726,-500.0,0.00021475,2]
[349629848,1737336640736,-500.0,0.00021475,2]
[349629849,1737336640746,-1351.22,0.00021475,2]
[349629850,1737336640755,-500.0,0.00021475,2]
[349629851,1737336640765,-574.73,0.00021475,2]
[349629852,1737336640774,-500.0,0.00021475,2]
[349629853,1737336640784,-500.0,0.00021475,2]
[349629854,1737336640793,-500.0,0.00021475,2]
[349629855,1737336640803,-500.0,0.00021475,2]
[349629856,1737336640813,-500.0,0.00021475,2]
[349629857,1737336640822,-500.0,0.00021475,2]
[349629858,1737336640833,-253.04293313,0.00021475,2]
[349629859,1737336640842,-500.0,0.00021475,2]
[349629860,1737336640852,-570.51,0.00021475,2]
[349629861,1737336640862,-500.0,0.00021475,2]
[349629862,1737336640873,-500.0,0.00021475,2]
[349629863,1737336640883,-500.0,0.00021475,2]
[349629864,1737336640892,-500.0,0.00021475,2]
[349629865,1737336640902,-500.0,0.00021475,2]
[349629866,1737336640912,-500.0,0.00021475,2]
[349629867,1737336640922,-500.0,0.00021475,2]
[349629868,1737336640935,-500.0,0.00021475,2]
[349629869,1737336640945,-500.0,0.00021475,2]
[349629870,1737336640954,-500.0,0.00021475,2]
[349629871,1737336640964,-500.0,0.00021475,2]
[349629872,1737336640974,-500.0,0.00021475,2]
[349629873,1737336640984,-500.0,0.00021475,2]
[349629874,1737336640994,-501.41511313,0.00021475,2]
[349629875,1737336641004,-604.52,0.00021475,2]
[349629876,1737336641014,-501.54164584,0.00021475,2]
[349629877,1737336641024,-500.0,0.00021475,2]
[349629878,1737336641033,-500.0,0.00021475,2]
[349629879,1737336641043,-500.0,0.00021475,2]
[349629880,1737336641053,-1166.36,0.00021475,2]
[349629881,1737336641062,-500.0,0.00021475,2]
[349629882,1737336641072,-556.27,0.00021475,2]
[349629883,1737336641082,-500.0,0.00021475,2]
[349629884,1737336641092,-500.0,0.00021475,2]
[349629885,1737336641102,-500.0,0.00021475,2]
[349629886,1737336641112,-500.0,0.00021475,2]
[349629887,1737336641121,-500.0,0.00021475,2]
[349629888,1737336641131,-897.74,0.00021475,2]
[349629889,1737336641141,-500.0,0.00021475,2]
[349629890,1737336641150,-500.0,0.00021475,2]
[349629891,1737336641159,-500.0,0.00021475,2]
[349629892,1737336641168,-500.0,0.00021475,2]
[349629893,1737336641177,-500.0,0.00021475,2]
[349629894,1737336641190,-4854.32,0.00021475,2]
[349629895,1737336641200,-500.0,0.00021475,2]
[349629896,1737336641209,-500.0,0.00021475,2]
[349629897,1737336641219,-500.0,0.00021475,2]
[349629898,1737336641229,-500.0,0.00021475,2]
[349629899,1737336641239,-1990.23,0.00021475,2]
[349629900,1737336641249,-365.59145259,0.00021475,2]
[349629901,1737336641259,-500.0,0.00021475,2]
[349629902,1737336641268,-2275.433281,0.00021475,2]
[349629903,1737336641277,-500.0,0.00021475,2]
[349629904,1737336641287,-500.0,0.00021475,2]
[349629905,1737336641296,-607.5,0.00021475,2]
[349629906,1737336641306,-1501.28,0.00021475,2]
[349629907,1737336641315,-500.0,0.00021475,2]
[349629908,1737336641325,-500.0,0.00021475,2]
[349629909,1737336641334,-500.0,0.00021475,2]
[349629910,1737336641343,-1889.49,0.00021475,2]
[349629911,1737336641353,-500.0,0.00021475,2]
[349629912,1737336641362,-500.92485034,0.00021475,2]
[349629913,1737336641372,-504.61696388,0.00021475,2]
[349629914,1737336641381,-500.0,0.00021475,2]
[349629915,1737336641391,-1461.34,0.00021475,2]
[349629916,1737336641401,-500.0,0.00021475,2]
[349629917,1737336641411,-500.0,0.00021475,2]
[349629918,1737336641421,-500.0,0.00021475,2]
[349629919,1737336641430,-500.0,0.00021475,2]
[349629920,1737336641443,-500.0,0.00021475,2]
[349629921,1737336641453,-1489.26978,0.00021475,2]
[349629922,1737336641462,-500.0,0.00021475,2]
[349629923,1737336641473,-500.0,0.00021475,2]